fUST/lending_fUST_20250828
["ID","MTS","AMOUNT","RATE_DAILY","PERIOD"]
[381707325,1756315901084,-594.54,0.00023287,2]
[381707326,1756315901093,-1891.73,0.00023287,2]
[381707327,1756315901103,-480.0,0.00023287,2]
[381707328,1756315901113,-480.0,0.00023287,2]
[381707329,1756315901123,-1424.24,0.00023287,2]
[381707330,1756315901132,-480.0,0.00023287,2]
[381707331,1756315901142,-490.12,0.00023287,2]
[381707332,1756315901153,-2437.05,0.00023287,2]
[381707333,1756315901164,-480.0,0.00023287,2]
[381707334,1756315901175,-480.0,0.00023287,2]
[381707335,1756315901185,-480.0,0.00023287,2]
[381707336,1756315901196,-480.0,0.00023287,2]
[381707337,1756315901206,-480.0,0.00023287,2]
[381707338,1756315901217,-632.92,0.00023287,2]
[381707339,1756315901228,-480.0,0.00023287,2]
[381707340,1756315901238,-480.0,0.00023287,2]
[381707341,1756315901248,-562.31,0.00023287,2]
[381707342,1756315901259,-1677.51,0.00023287,2]
[381707343,1756315901268,-480.0,0.00023287,2]
[381707344,1756315901278,-480.0,0.00023287,2]
[381707345,1756315901288,-480.0,0.00023287,2]
[381707346,1756315901297,-480.0,0.00023287,2]
[381707347,1756315901307,-523.31,0.00023287,2]
[381707348,1756315901316,-532.28,0.00023287,2]
[381707349,1756315901326,-500.19,0.00023287,2]
[381707350,1756315901337,-480.0,0.00023287,2]
[381707351,1756315901352,-505.61,0.00023287,2]
[381707352,1756315901362,-593.0,0.00023287,2]
[381707353,1756315901372,-2955.96,0.00023287,2]
[381707354,1756315901382,-874.64,0.00023287,2]
[381707355,1756315901391,-480.0,0.00023287,2]
[381707356,1756315901400,-480.0,0.00023287,2]
[381707357,1756315901410,-480.0,0.00023287,2]
[381707358,1756315901419,-525.49,0.00023287,2]
[381707359,1756315901430,-480.0,0.00023287,2]
[381707360,1756315901440,-542.14,0.00023287,2]
[381707361,1756315901449,-1307.67,0.00023287,2]
[381707362,1756315901460,-487.85,0.00023287,2]
[381707363,1756315901470,-3139.91,0.00023287,2]
[381707364,1756315901480,-790.4,0.00023287,2]
[381707365,1756315901490,-480.0,0.00023287,2]
[381707366,1756315901500,-673.27,0.00023287,2]
[381707367,1756315901510,-480.0,0.00023287,2]
[381707368,1756315901521,-480.0,0.00023287,2]
[381707369,1756315901532,-480.0,0.00023287,2]
[381707370,1756315901542,-490.27,0.00023287,2]
[381707371,1756315901551,-1507.95,0.00023287,2]
[381707372,1756315901561,-1488.87,0.00023287,2]
[381707373,1756315901571,-704.88,0.00023287,2]
[381707374,1756315901581,-480.0,0.00023287,2]
[381707375,1756315901597,-504.58,0.00023287,2]
[381707376,1756315901607,-1155.37,0.00023287,2]
[381707377,1756315901618,-557.12049343,0.00023287,2]
[381707378,1756315901628,-1124.84,0.00023287,2]
[381707379,1756315901639,-480.0,0.00023287,2]
[381707380,1756315901649,-480.0,0.00023287,2]
[381707381,1756315901659,-480.0,0.00023287,2]
[381707382,1756315901669,-3001.81,0.00023287,2]
[381707383,1756315901679,-480.0,0.00023287,2]
[381707384,1756315901690,-480.0,0.00023287,2]
[381707385,1756315901699,-852.13,0.00023287,2]
[381707386,1756315901709,-808.37,0.00023287,2]
[381707387,1756315901718,-480.0,0.00023287,2]
[381707388,1756315901728,-480.0,0.00023287,2]
[381707389,1756315901738,-845.32,0.00023287,2]
[381707390,1756315901748,-1712.6,0.00023287,2]
[381707391,1756315901758,-1056.32,0.00023287,2]
[381707392,1756315901769,-1736.27,0.00023287,2]
[381707393,1756315901779,-904.87,0.00023287,2]
[381707394,1756315901788,-480.0,0.00023287,2]
[381707395,1756315901797,-480.0,0.00023287,2]
[381707396,1756315901807,-809.45,0.00023287,2]
[381707397,1756315901817,-480.0,0.00023287,2]
[381707398,1756315901826,-480.0,0.00023287,2]
[381707399,1756315901836,-480.0,0.00023287,2]
[381707400,1756315901848,-1631.08,0.00023287,2]
[381707401,1756315901858,-260.05766195,0.00023287,2]
[381707402,1756315901867,-480.0,0.00023287,2]
[381707403,1756315901877,-480.0,0.00023287,2]
[381707404,1756315901886,-480.0,0.00023287,2]
[381707405,1756315901896,-480.0,0.00023287,2]
[381707406,1756315901906,-151.0,0.00023288,7]
[381707407,1756315901916,-151.0,0.00023288,7]
[381707408,1756315901925,-151.0,0.00023288,7]
[381707409,1756315901934,-245.0,0.00023288,7]
[381707410,1756315901945,-3000.0,0.0002329,2]
[381707411,1756315901956,-1112.0,0.00023291,2]
[381707412,1756315901965,-3000.0,0.000233,2]
[381707413,1756315901975,-6800.07,0.000233,7]
[381707414,1756315901986,-3000.0,0.0002331,2]
[381707415,1756315901995,-168.0,0.00023311,2]
[381707416,1756315902005,-3000.0,0.0002332,2]
[381707417,1756315902015,-5246.759806,0.0002333,2]
[381707418,1756315902024,-1193.4793795,0.0002337,2]
[381707419,1756315902033,-304.38226,0.00023385,2]
[381707420,1756315902043,-304.38226,0.00023424,3]
[381707421,1756315902052,-168.0,0.00023439,2]
[381707422,1756315902063,-12048.14,0.000235,2]
[381707423,1756315902074,-65900.43,0.000235,7]
[381707424,1756315902085,-160.0,0.000235,3]
[381707425,1756315902096,-1000.0,0.00023516,2]
[381707426,1756315902106,-1479.24514191,0.00023516,2]
[381707427,1756315902116,-1500.0,0.00023516,2]
[381707428,1756315902126,-184.41567228,0.00023516,2]
[381707429,1756315902135,-2000.0,0.00023516,2]
[381707430,1756315902145,-589.96387046,0.00023561,2]
[381707431,1756315902155,-480.0,0.00023561,2]
[381707432,1756315902166,-487.24,0.00023561,2]
[381707433,1756315902176,-480.0,0.00023561,2]
[381707434,1756315902186,-521.13,0.00023561,2]
[381707435,1756315902196,-420.0,0.00023561,2]
[381707436,1756315902205,-754.55,0.00023561,2]
[381707437,1756315902215,-480.0,0.00023561,2]
[381707438,1756315902226,-480.0,0.00023561,2]
[381707439,1756315902235,-480.0,0.00023561,2]
[381707440,1756315902246,-480.0,0.00023561,2]
[381707441,1756315902255,-480.0,0.00023561,2]
[381707442,1756315902265,-480.0,0.00023561,2]
[381707443,1756315902275,-480.0,0.00023561,2]
[381707444,1756315902286,-480.0,0.00023561,2]
[381707445,1756315902295,-1012.65,0.00023561,2]
[381707446,1756315902305,-480.0,0.00023561,2]
[381707447,1756315902316,-499.63,0.00023561,2]
[381707448,1756315902326,-480.0,0.00023561,2]
[381707449,1756315902338,-480.0,0.00023561,2]
[381707450,1756315902348,-480.0,0.00023561,2]
[381707451,1756315902357,-480.0,0.00023561,2]
[381707452,1756315902367,-480.0,0.00023561,2]
[381707453,1756315902376,-480.0,0.00023561,2]
[381707454,1756315902386,-734.05,0.00023561,2]
[381707455,1756315902396,-487.48,0.00023561,2]
[381707456,1756315902408,-480.0,0.00023561,2]
[381707457,1756315902417,-480.0,0.00023561,2]
[381707458,1756315902427,-861.84,0.00023561,2]
[381707459,1756315902436,-480.0,0.00023561,2]
[381707460,1756315902445,-480.0,0.00023561,2]
[381707461,1756315902455,-480.0,0.00023561,2]
[381707462,1756315902464,-480.0,0.00023561,2]
[381707463,1756315902474,-480.0,0.00023561,2]
[381707464,1756315902484,-480.0,0.00023561,2]
[381707465,1756315902493,-1003.54,0.00023561,2]
[381707466,1756315902502,-480.0,0.00023561,2]
[381707467,1756315902512,-480.0,0.00023561,2]
[381707468,1756315902521,-480.0,0.00023561,2]
[381707469,1756315902531,-480.0,0.00023561,2]
[381707470,1756315902540,-480.0,0.00023561,2]
[381707471,1756315902550,-547.19,0.00023561,2]
[381707472,1756315902559,-591.49,0.00023561,2]
[381707473,1756315902569,-480.0,0.00023561,2]
[381707474,1756315902578,-480.0,0.00023561,2]
[381707475,1756315902589,-480.0,0.00023561,2]
[381707476,1756315902602,-480.0,0.00023561,2]
[381707477,1756315902612,-480.0,0.00023561,2]
[381707478,1756315902621,-480.0,0.00023561,2]
[381707479,1756315902630,-480.0,0.00023561,2]
[381707480,1756315902641,-480.0,0.00023561,2]
[381707481,1756315902650,-480.0,0.00023561,2]
[381707482,1756315902659,-501.98,0.00023561,2]
[381707483,1756315902669,-480.0,0.00023561,2]
[381707484,1756315902679,-480.0,0.00023561,2]
[381707485,1756315902689,-480.0,0.00023561,2]
[381707486,1756315902698,-653.06,0.00023561,2]
[381707487,1756315902709,-532.33,0.00023561,2]
[381707488,1756315902719,-480.0,0.00023561,2]
[381707489,1756315902728,-480.0,0.00023561,2]
[381707490,1756315902738,-480.0,0.00023561,2]
[381707491,1756315902747,-480.0,0.00023561,2]
[381707492,1756315902756,-480.0,0.00023561,2]
[381707493,1756315902766,-480.0,0.00023561,2]
[381707494,1756315902775,-480.0,0.00023561,2]
[381707495,1756315902784,-480.0,0.00023561,2]
[381707496,1756315902793,-480.0,0.00023561,2]
[381707497,1756315902802,-533.90851467,0.00023561,2]
[381707498,1756315902811,-480.0,0.00023561,2]
[381707499,1756315902821,-563.45127733,0.00023561,2]
[381707500,1756315902830,-480.0,0.00023561,2]
[381707501,1756315902840,-480.0,0.00023561,2]
[381707502,1756315902849,-480.0,0.00023561,2]
[381707503,1756315902858,-480.0,0.00023561,2]
[381707504,1756315902867,-480.0,0.00023561,2]
[381707505,1756315902876,-521.62,0.00023561,2]
[381707506,1756315902885,-553.62,0.00023561,2]
[381707507,1756315902894,-480.0,0.00023561,2]
[381707508,1756315902904,-480.0,0.00023561,2]
[381707509,1756315902913,-409.36984114,0.00023561,2]
[381707510,1756315902923,-480.0,0.00023561,2]
[381707511,1756315902932,-480.0,0.00023561,2]
[381707512,1756315902941,-480.0,0.00023561,2]
[381707513,1756315902951,-633.41,0.00023561,2]
[381707514,1756315902960,-480.0,0.00023561,2]
[381707515,1756315902969,-480.0,0.00023561,2]
[381707516,1756315902979,-480.0,0.00023561,2]
[381707517,1756315902988,-480.84,0.00023561,2]
[381707518,1756315902997,-480.0,0.00023561,2]
[381707519,1756315903006,-480.0,0.00023561,2]
[381707520,1756315903016,-647.08,0.00023561,2]
[381707521,1756315903025,-480.0,0.00023561,2]
[381707522,1756315903035,-559.93,0.00023561,2]
[381707523,1756315903045,-480.0,0.00023561,2]
[381707524,1756315903054,-390.95961972,0.00023561,2]
[381707525,1756315903064,-480.0,0.00023561,2]
[381707526,1756315903073,-480.0,0.00023561,2]
[381707527,1756315903083,-480.0,0.00023561,2]
[381707528,1756315903092,-480.0,0.00023561,2]
[381707529,1756315903102,-480.0,0.00023561,2]
[381707530,1756315903112,-609.46,0.00023561,2]
[381707531,1756315903121,-423.49713783,0.00023561,2]
[381707532,1756315903131,-480.0,0.00023561,2]
[381707533,1756315903141,-480.0,0.00023561,2]
[381707534,1756315903150,-480.0,0.00023561,2]
[381707535,1756315903159,-480.0,0.00023561,2]
[381707536,1756315903169,-555.02,0.00023561,2]
[381707537,1756315903179,-480.0,0.00023561,2]
[381707538,1756315903188,-480.0,0.00023561,2]
[381707539,1756315903197,-660.92,0.00023561,2]
[381707540,1756315903207,-569.18,0.00023561,2]
[381707541,1756315903217,-1003.81,0.00023561,2]
[381707542,1756315903227,-680.33,0.00023561,2]
[381707543,1756315903237,-480.0,0.00023561,2]
[381707544,1756315903246,-480.0,0.00023561,2]
[381707545,1756315903256,-480.0,0.00023561,2]
[381707546,1756315903265,-681.56,0.00023561,2]
[381707547,1756315903275,-480.0,0.00023561,2]
[381707548,1756315903284,-480.0,0.00023561,2]
[381707549,1756315903295,-480.0,0.00023561,2]
[381707550,1756315903304,-480.0,0.00023561,2]
[381707551,1756315903313,-480.0,0.00023561,2]
[381707552,1756315903322,-480.0,0.00023561,2]
[381707553,1756315903333,-480.0,0.00023561,2]
[381707554,1756315903344,-480.0,0.00023561,2]
[381707555,1756315903353,-1465.34,0.00023561,2]
[381707556,1756315903362,-480.0,0.00023561,2]
[381707557,1756315903372,-480.0,0.00023561,2]
[381707558,1756315903381,-480.0,0.00023561,2]
[381707559,1756315903391,-544.04,0.00023561,2]
[381707560,1756315903400,-480.0,0.00023561,2]
[381707561,1756315903409,-480.0,0.00023561,2]
[381707562,1756315903418,-480.0,0.00023561,2]
[381707563,1756315903428,-1039.38,0.00023561,2]
[381707564,1756315903437,-480.0,0.00023561,2]
[381707565,1756315903446,-531.56,0.00023561,2]
[381707566,1756315903456,-1343.03,0.00023561,2]
[381707567,1756315903465,-480.0,0.00023561,2]
[381707568,1756315903475,-480.0,0.00023561,2]
[381707569,1756315903484,-480.0,0.00023561,2]
[381707570,1756315903494,-611.28681639,0.00023561,2]
[381707571,1756315903504,-480.0,0.00023561,2]
[381707572,1756315903513,-480.0,0.00023561,2]
[381707573,1756315903523,-266.71,0.00023561,2]
[381707574,1756315903532,-266.71,0.00023561,2]
[381707575,1756315903542,-266.71,0.00023561,2]
[381707576,1756315903551,-266.71,0.00023561,2]
[381707577,1756315903560,-266.71,0.00023561,2]
[381707578,1756315903570,-266.71,0.00023561,2]
[381707579,1756315903579,-266.71,0.00023561,2]
[381707580,1756315903590,-500.0,0.00023561,2]
[381707581,1756315903603,-614.45,0.00023561,2]
[381707582,1756315903612,-480.0,0.00023561,2]
[381707583,1756315903621,-480.0,0.00023561,2]
[381707584,1756315903631,-480.0,0.00023561,2]
[381707585,1756315903641,-480.0,0.00023561,2]
[381707586,1756315903650,-480.0,0.00023561,2]
[381707587,1756315903661,-760.2,0.00023561,2]
[381707588,1756315903671,-530.93,0.00023561,2]
[381707589,1756315903680,-480.0,0.00023561,2]
[381707590,1756315903690,-1064.0,0.00023561,2]
[381707591,1756315903699,-480.0,0.00023561,2]
[381707592,1756315903709,-480.0,0.00023561,2]
[381707593,1756315903718,-480.0,0.00023561,2]
[381707594,1756315903727,-480.0,0.00023561,2]
[381707595,1756315903736,-480.0,0.00023561,2]
[381707596,1756315903745,-505.17,0.00023561,2]
[381707597,1756315903755,-892.04,0.00023561,2]
[381707598,1756315903764,-662.34,0.00023561,2]
[381707599,1756315903773,-480.0,0.00023561,2]
[381707600,1756315903782,-480.0,0.00023561,2]
[381707601,1756315903791,-480.0,0.00023561,2]
[381707602,1756315903800,-480.0,0.00023561,2]
[381707603,1756315903809,-480.0,0.00023561,2]
[381707604,1756315903819,-480.0,0.00023561,2]
[381707605,1756315903828,-347.92218404,0.00023561,2]
[381707606,1756315903848,-480.0,0.00023561,2]
[381707607,1756315903858,-1566.48,0.00023561,2]
[381707608,1756315903867,-480.0,0.00023561,2]
[381707609,1756315903876,-480.0,0.00023561,2]
[381707610,1756315903885,-480.0,0.00023561,2]
[381707611,1756315903894,-480.0,0.00023561,2]
[381707612,1756315903904,-480.0,0.00023561,2]
[381707613,1756315903913,-480.0,0.00023561,2]
[381707614,1756315903922,-703.96,0.00023561,2]
[381707615,1756315903931,-480.0,0.00023561,2]
[381707616,1756315903941,-480.0,0.00023561,2]
[381707617,1756315903950,-717.25,0.00023561,2]
[381707618,1756315903959,-480.0,0.00023561,2]
[381707619,1756315903969,-480.0,0.00023561,2]
[381707620,1756315903978,-480.0,0.00023561,2]
[381707621,1756315903988,-480.0,0.00023561,2]
[381707622,1756315903997,-480.0,0.00023561,2]
[381707623,1756315904006,-766.14,0.00023561,2]
[381707624,1756315904015,-480.0,0.00023561,2]
[381707625,1756315904025,-1026.52,0.00023561,2]
[381707626,1756315904034,-480.0,0.00023561,2]
[381707627,1756315904044,-480.0,0.00023561,2]
[381707628,1756315904053,-897.12,0.00023561,2]
[381707629,1756315904063,-480.0,0.00023561,2]
[381707630,1756315904073,-480.0,0.00023561,2]
[381707631,1756315904082,-480.0,0.00023561,2]
[381707632,1756315904092,-496.15,0.00023561,2]
[381707633,1756315904101,-480.0,0.00023561,2]
[381707634,1756315904112,-480.0,0.00023561,2]
[381707635,1756315904121,-839.95,0.00023561,2]
[381707636,1756315904130,-480.0,0.00023561,2]
[381707637,1756315904140,-510.18,0.00023561,2]
[381707638,1756315904149,-480.0,0.00023561,2]
[381707639,1756315904158,-4321.67,0.00023561,2]
[381707640,1756315904168,-480.0,0.00023561,2]
[381707641,1756315904177,-298.7401653,0.00023561,2]
[381707642,1756315904187,-748.41,0.00023561,2]
[381707643,1756315904196,-480.0,0.00023561,2]
[381707644,1756315904206,-530.0,0.00023561,2]
[381707645,1756315904215,-480.0,0.00023561,2]
[381707646,1756315904225,-480.0,0.00023561,2]
[381707647,1756315904234,-480.0,0.00023561,2]
[381707648,1756315904244,-497.55,0.00023561,2]
[381707649,1756315904254,-487.03,0.00023561,2]
[381707650,1756315904263,-480.0,0.00023561,2]
[381707651,1756315904272,-831.39,0.00023561,2]
[381707652,1756315904282,-480.0,0.00023561,2]
[381707653,1756315904291,-480.0,0.00023561,2]
[381707654,1756315904300,-480.0,0.00023561,2]
[381707655,1756315904310,-524.19,0.00023561,2]
[381707656,1756315904319,-480.0,0.00023561,2]
[381707657,1756315904330,-1177.95,0.00023561,2]
[381707658,1756315904339,-480.0,0.00023561,2]
[381707659,1756315904348,-481.19893396,0.00023561,2]
[381707660,1756315904359,-480.0,0.00023561,2]
[381707661,1756315904368,-480.0,0.00023561,2]
[381707662,1756315904603,-480.0,0.00023561,2]
[381707663,1756315904613,-480.0,0.00023561,2]
[381707664,1756315904622,-480.0,0.00023561,2]
[381707665,1756315904631,-480.0,0.00023561,2]
[381707666,1756315904641,-612.8,0.00023561,2]
[381707667,1756315904650,-480.0,0.00023561,2]
[381707668,1756315904660,-367.68774255,0.00023561,2]
[381707669,1756315904670,-1709.99,0.00023561,2]
[381707670,1756315904679,-588.21,0.00023561,2]
[381707671,1756315904688,-480.0,0.00023561,2]
[381707672,1756315904697,-532.52,0.00023561,2]
[381707673,1756315904706,-480.0,0.00023561,2]
[381707674,1756315904717,-480.0,0.00023561,2]
[381707675,1756315904726,-430.07049116,0.00023561,2]
[381707676,1756315904736,-480.0,0.00023561,2]
[381707677,1756315904746,-480.0,0.00023561,2]
[381707678,1756315904756,-907.14,0.00023561,2]
[381707679,1756315904766,-1087.58,0.00023561,2]
[381707680,1756315904776,-615.39,0.00023561,2]
[381707681,1756315904785,-480.0,0.00023561,2]
[381707682,1756315904795,-480.0,0.00023561,2]
[381707683,1756315904804,-480.0,0.00023561,2]
[381707684,1756315904813,-480.0,0.00023561,2]
[381707685,1756315904822,-501.15,0.00023561,2]
[381707686,1756315904832,-822.31,0.00023561,2]
[381707687,1756315904842,-561.9879477,0.00023561,2]
[381707688,1756315904852,-480.0,0.00023561,2]
[381707689,1756315904861,-480.0,0.00023561,2]
[381707690,1756315904871,-480.0,0.00023561,2]
[381707691,1756315904880,-480.0,0.00023561,2]
[381707692,1756315904890,-480.0,0.00023561,2]
[381707693,1756315904900,-480.0,0.00023561,2]
[381707694,1756315904909,-480.0,0.00023561,2]
[381707695,1756315904919,-513.13,0.00023561,2]
[381707696,1756315904928,-480.0,0.00023561,2]
[381707697,1756315904938,-7578.13,0.00023561,2]
[381707698,1756315904948,-767.09,0.00023561,2]
[381707699,1756315904958,-521.90872379,0.00023561,2]
[381707700,1756315904968,-480.0,0.00023561,2]
[381707701,1756315904979,-1421.98,0.00023561,2]
[381707702,1756315904990,-480.0,0.00023561,2]
[381707703,1756315905000,-480.0,0.00023561,2]
[381707704,1756315905009,-480.0,0.00023561,2]
[381707705,1756315905019,-480.0,0.00023561,2]
[381707706,1756315905028,-480.0,0.00023561,2]
[381707707,1756315905039,-564.27,0.00023561,2]
[381707708,1756315905050,-480.0,0.00023561,2]
[381707709,1756315905059,-480.0,0.00023561,2]
[381707710,1756315905070,-480.0,0.00023561,2]
[381707711,1756315905081,-480.0,0.00023561,2]
[381707712,1756315905090,-480.0,0.00023561,2]
[381707713,1756315905100,-480.0,0.00023561,2]
[381707714,1756315905109,-480.0,0.00023561,2]
[381707715,1756315905119,-545.55,0.00023561,2]
[381707716,1756315905128,-480.0,0.00023561,2]
[381707717,1756315905137,-480.0,0.00023561,2]
[381707718,1756315905147,-480.0,0.00023561,2]
[381707719,1756315905156,-1006.49,0.00023561,2]
[381707720,1756315905166,-480.0,0.00023561,2]
[381707721,1756315905175,-480.0,0.00023561,2]
[381707722,1756315905185,-480.0,0.00023561,2]
[381707723,1756315905194,-480.0,0.00023561,2]
[381707724,1756315905204,-480.0,0.00023561,2]
[381707725,1756315905214,-480.0,0.00023561,2]
[381707726,1756315905223,-480.0,0.00023561,2]
[381707727,1756315905233,-602.91,0.00023561,2]
[381707728,1756315905242,-480.0,0.00023561,2]
[381707729,1756315905252,-480.0,0.00023561,2]
[381707730,1756315905261,-480.0,0.00023561,2]
[381707731,1756315905270,-480.0,0.00023561,2]
[381707732,1756315905279,-482.36894063,0.00023561,2]
[381707733,1756315905289,-480.0,0.00023561,2]
[381707734,1756315905299,-596.82,0.00023561,2]
[381707735,1756315905307,-480.0,0.00023561,2]
[381707736,1756315905317,-575.39,0.00023561,2]
[381707737,1756315905326,-480.0,0.00023561,2]
[381707738,1756315905335,-480.0,0.00023561,2]
[381707739,1756315905345,-480.0,0.00023561,2]
[381707740,1756315905354,-480.0,0.00023561,2]
[381707741,1756315905364,-506.47,0.00023561,2]
[381707742,1756315905373,-480.0,0.00023561,2]
[381707743,1756315905383,-635.3,0.00023561,2]
[381707744,1756315905392,-1605.48,0.00023561,2]
[381707745,1756315905401,-984.43,0.00023561,2]
[381707746,1756315905410,-480.0,0.00023561,2]
[381707747,1756315905420,-496.43,0.00023561,2]
[381707748,1756315905429,-480.0,0.00023561,2]
[381707749,1756315905439,-480.0,0.00023561,2]
[381707750,1756315905449,-480.0,0.00023561,2]
[381707751,1756315905458,-708.97,0.00023561,2]
[381707752,1756315905467,-480.0,0.00023561,2]
[381707753,1756315905477,-480.0,0.00023561,2]
[381707754,1756315905486,-480.0,0.00023561,2]
[381707755,1756315905497,-480.0,0.00023561,2]
[381707756,1756315905506,-480.0,0.00023561,2]
[381707757,1756315905516,-517.74,0.00023561,2]
[381707758,1756315905525,-480.0,0.00023561,2]
[381707759,1756315905534,-500.0,0.00023561,2]
[381707760,1756315905544,-480.0,0.00023561,2]
[381707761,1756315905553,-480.0,0.00023561,2]
[381707762,1756315905563,-636.21,0.00023561,2]
[381707763,1756315905573,-735.93,0.00023561,2]
[381707764,1756315905582,-480.0,0.00023561,2]
[381707765,1756315905592,-480.0,0.00023561,2]
[381707766,1756315905604,-480.0,0.00023561,2]
[381707767,1756315905613,-551.29,0.00023561,2]
[381707768,1756315905623,-530.01,0.00023561,2]
[381707769,1756315905632,-480.0,0.00023561,2]
[381707770,1756315905643,-480.0,0.00023561,2]
[381707771,1756315905652,-749.97,0.00023561,2]
[381707772,1756315905662,-480.0,0.00023561,2]
[381707773,1756315905672,-828.83,0.00023561,2]
[381707774,1756315905681,-646.17,0.00023561,2]
[381707775,1756315905690,-709.76,0.00023561,2]
[381707776,1756315905700,-480.0,0.00023561,2]
[381707777,1756315905709,-1357.85,0.00023561,2]
[381707778,1756315905718,-1059.71,0.00023561,2]
[381707779,1756315905728,-480.0,0.00023561,2]
[381707780,1756315905737,-1042.56,0.00023561,2]
[381707781,1756315905746,-480.0,0.00023561,2]
[381707782,1756315905756,-669.54,0.00023561,2]
[381707783,1756315905766,-480.0,0.00023561,2]
[381707784,1756315905776,-480.0,0.00023561,2]
[381707785,1756315905785,-480.0,0.00023561,2]
[381707786,1756315905794,-480.0,0.00023561,2]
[381707787,1756315905804,-707.48,0.00023561,2]
[381707788,1756315905814,-550.53,0.00023561,2]
[381707789,1756315905823,-1356.93,0.00023561,2]
[381707790,1756315905833,-480.0,0.00023561,2]
[381707791,1756315905843,-754.65,0.00023561,2]
[381707792,1756315905852,-480.0,0.00023561,2]
[381707793,1756315905862,-480.0,0.00023561,2]
[381707794,1756315905871,-270.82565939,0.00023561,2]
[381707795,1756315905881,-480.0,0.00023561,2]
[381707796,1756315905890,-480.0,0.00023561,2]
[381707797,1756315905900,-480.0,0.00023561,2]
[381707798,1756315905909,-833.89,0.00023561,2]
[381707799,1756315905919,-480.0,0.00023561,2]
[381707800,1756315905928,-1635.95,0.00023561,2]
[381707801,1756315905937,-616.04,0.00023561,2]
[381707802,1756315905946,-1308.59,0.00023561,2]
[381707803,1756315905955,-833.28,0.00023561,2]
[381707804,1756315905964,-480.0,0.00023561,2]
[381707805,1756315905973,-480.0,0.00023561,2]
[381707806,1756315905982,-1328.04,0.00023561,2]
[381707807,1756315905991,-480.0,0.00023561,2]
[381707808,1756315906001,-491.24,0.00023561,2]
[381707809,1756315906011,-6376.86,0.00023561,2]
[381707810,1756315906022,-480.0,0.00023561,2]
[381707811,1756315906031,-480.0,0.00023561,2]
[381707812,1756315906040,-1366.07,0.00023561,2]
[381707813,1756315906052,-480.0,0.00023561,2]
[381707814,1756315906062,-480.0,0.00023561,2]
[381707815,1756315906071,-480.0,0.00023561,2]
[381707816,1756315906081,-480.0,0.00023561,2]
[381707817,1756315906090,-811.3,0.00023561,2]
[381707818,1756315906100,-480.0,0.00023561,2]
[381707819,1756315906109,-1738.63,0.00023561,2]
[381707820,1756315906128,-480.0,0.00023561,2]
[381707821,1756315906147,-1230.54,0.00023561,2]
[381707822,1756315906160,-597.4,0.00023561,2]
[381707823,1756315906177,-5290.09,0.00023561,2]
[381707824,1756315906193,-352.20667755,0.00023561,2]